fUST/lending_fUST_20250311
["ID","MTS","AMOUNT","RATE_DAILY","PERIOD"]
[355878158,1741671054115,-500.0,0.00046688,120]
[355878159,1741671054135,-818.96,0.00046688,120]
[355878160,1741671054152,-905.08,0.00046688,120]
[355878161,1741671054173,-1180.37,0.00046688,120]
[355878162,1741671054195,-500.0,0.00046688,120]
[355878163,1741671054211,-1000.0,0.00046688,120]
[355878164,1741671054232,-897.8,0.00046688,120]
[355878165,1741671054254,-594.8,0.00046688,120]
[355878166,1741671054274,-1103.68,0.00046688,120]
[355878167,1741671054293,-1089.22,0.00046688,120]
[355878168,1741671054311,-649.93,0.00046688,120]
[355878169,1741671054330,-1157.05,0.00046688,120]
[355878170,1741671054348,-887.63,0.00046688,120]
[355878171,1741671054366,-500.0,0.00046688,120]
[355878172,1741671054383,-1896.94,0.00046688,120]
[355878173,1741671054401,-559.47,0.0004669,120]
[355878174,1741671054419,-500.0,0.0004669,30]
[355878175,1741671054435,-500.0,0.0004669,120]
[355878176,1741671054453,-188.0,0.0004669,120]
[355878177,1741671054470,-761.64,0.0004669,120]
[355878178,1741671054488,-536.56063089,0.0004669,120]
[355878179,1741671054504,-483.59074394,0.0004669,120]
[355878180,1741671054525,-500.0,0.0004669,120]
[355878181,1741671054542,-559.87582317,0.0004669,120]
[355878182,1741671054559,-500.0,0.0004669,120]
[355878183,1741671054577,-500.0,0.0004669,120]
[355878184,1741671054596,-500.0,0.0004669,120]
[355878185,1741671054615,-500.0,0.0004669,120]
[355878186,1741671054633,-500.0,0.0004669,120]
[355878187,1741671054650,-598.6,0.0004669,120]
[355878188,1741671054670,-500.0,0.0004669,120]
[355878189,1741671054687,-500.0,0.0004669,120]
[355878190,1741671054705,-500.0,0.0004669,120]
[355878191,1741671054723,-357.8895016,0.0004669,120]
[355878192,1741671054741,-500.0,0.0004669,120]
[355878193,1741671054759,-555.1918963,0.0004669,120]
[355878194,1741671054777,-500.0,0.0004669,120]
[355878195,1741671054796,-500.0,0.0004669,120]
[355878196,1741671054814,-500.0,0.0004669,120]
[355878197,1741671054833,-500.0,0.0004669,120]
[355878198,1741671054851,-500.0,0.0004669,120]
[355878199,1741671054870,-760.76,0.0004669,120]
[355878200,1741671054889,-500.0,0.0004669,120]
[355878201,1741671054909,-500.0,0.0004669,120]
[355878202,1741671054927,-500.0,0.0004669,120]
[355878203,1741671054944,-500.0,0.0004669,120]
[355878204,1741671054961,-588.32278404,0.0004669,120]
[355878205,1741671054979,-500.0,0.0004669,120]
[355878206,1741671054999,-1312.16,0.0004669,120]
[355878207,1741671055018,-500.0,0.0004669,120]
[355878208,1741671055035,-941.09,0.0004669,120]
[355878209,1741671055053,-500.0,0.0004669,120]
[355878210,1741671055071,-500.0,0.0004669,120]
[355878211,1741671055089,-500.0,0.0004669,120]
[355878212,1741671055107,-669.14,0.0004669,120]
[355878213,1741671055123,-823.88,0.0004669,120]
[355878214,1741671055142,-500.0,0.0004669,120]
[355878215,1741671055153,-1292.1,0.0004669,120]
[355878216,1741671055371,-966.47,0.0004669,120]
[355878217,1741671055382,-500.0,0.0004669,120]
[355878218,1741671055392,-531.33,0.0004669,120]
[355878219,1741671055402,-500.0,0.0004669,120]
[355878220,1741671055412,-500.0,0.0004669,120]
[355878221,1741671055421,-500.0,0.0004669,120]
[355878222,1741671055430,-500.0,0.0004669,120]
[355878223,1741671055440,-857.32,0.0004669,120]
[355878224,1741671055450,-515.40137362,0.0004669,120]
[355878225,1741671055459,-500.0,0.0004669,120]
[355878226,1741671055469,-500.0,0.0004669,120]
[355878227,1741671055478,-500.0,0.0004669,120]
[355878228,1741671055488,-500.0,0.0004669,120]
[355878229,1741671055497,-500.0,0.0004669,120]
[355878230,1741671055507,-500.0,0.0004669,120]
[355878231,1741671055516,-500.0,0.0004669,120]
[355878232,1741671055525,-500.0,0.0004669,120]
[355878233,1741671055535,-500.0,0.0004669,120]
[355878234,1741671055544,-1224.92,0.0004669,120]
[355878235,1741671055554,-942.57,0.0004669,120]
[355878236,1741671055563,-500.0,0.0004669,120]
[355878237,1741671055573,-500.0,0.0004669,30]
[355878238,1741671055583,-500.0,0.0004669,120]
[355878239,1741671055592,-895.39,0.0004669,120]
[355878240,1741671055602,-500.0,0.0004669,120]
[355878241,1741671055611,-500.0,0.0004669,120]
[355878242,1741671055621,-500.0,0.0004669,120]
[355878243,1741671055630,-3333.8266887,0.000467,120]
[355878244,1741671055640,-245.48,0.000467,30]
[355878245,1741671055649,-583.36,0.000467,30]
[355878246,1741671055659,-3946.45,0.000467,30]
[355878247,1741671055669,-171522.4700388,0.000468,30]
[355878248,1741671055678,-179131.43606866,0.000468,30]
[355878249,1741671055998,-2152.7829,0.000468,30]
[355878250,1741671056358,-531.640718,0.00046315,110]
[355878251,1741671056367,-531.640718,0.00046316,110]
[355878252,1741671056377,-531.640718,0.00046316,110]
[355878253,1741671056388,-531.640718,0.00046415,110]
[355878254,1741671056403,-959.31,0.00046688,120]
[355878255,1741671056414,-130.88600124,0.000468,30]
[355878256,1741671056449,-531.640718,0.0004659,110]
[355878257,1741671056459,-1687.31251793,0.000468,30]
[355878258,1741671056471,-4436.71785262,0.000468,30]
[355878259,1741671057175,-500.0,0.00045995,2]
[355878260,1741671057185,-500.0,0.00045995,2]
[355878261,1741671057201,-500.0,0.00045995,2]
[355878262,1741671057211,-500.0,0.00045995,2]
[355878263,1741671057222,-500.0,0.00045995,2]
[355878264,1741671057232,-500.0,0.00045995,2]
[355878265,1741671057242,-500.0,0.00045995,2]
[355878266,1741671057252,-500.0,0.00045995,2]
[355878267,1741671057262,-500.0,0.00045995,2]
[355878268,1741671057272,-500.0,0.00045995,2]
[355878269,1741671057281,-304.58682469,0.00045995,2]
[355878270,1741671057292,-44.9260082,0.00045995,2]
[355878271,1741671057305,-455.0739918,0.00045995,2]
[355878272,1741671057315,-677.89,0.00046,30]
[355878273,1741671057325,-531.640718,0.00046043,110]
[355878274,1741671057335,-531.640718,0.0004659,110]
[355878275,1741671057344,-124.20492916,0.000468,30]
[355878276,1741671057356,-17088.81086415,0.000468,30]
[355878277,1741671058017,-727.64,0.00046032,10]
[355878278,1741671058027,-531.640718,0.00046315,110]
[355878279,1741671058036,-531.640718,0.00046316,110]
[355878280,1741671058046,-531.640718,0.00046316,110]
[355878281,1741671058056,-531.640718,0.00046415,110]
[355878282,1741671058066,-531.640718,0.0004659,110]
[355878283,1741671058076,-531.640718,0.0004659,110]
[355878284,1741671058085,-677.89,0.000466,30]
[355878285,1741671058095,-36508.18526532,0.000468,30]
[355878286,1741671058106,-306310.71435652,0.000468,30]
[355878287,1741671058119,-14162.29233212,0.000468,30]
[355878290,1741671940121,150.0,0.00025999,3]
[355878291,1741671945106,-567.07013515,0.00028011,2]
[355878292,1741671945129,-500.0,0.0003,30]
[355878293,1741671945158,-173.673221,0.00034463,2]
[355878294,1741671945183,-173.673221,0.00034463,120]
[355878295,1741671945208,-158.795775,0.0003589,2]
[355878296,1741671945233,-1281.65374107,0.000359,7]
[355878297,1741671945256,-400.0,0.00038641,5]
[355878298,1741671945280,-24900.0,0.00038642,2]
[355878299,1741671945303,-174.28278097,0.0003942,117]
[355878300,1741671945325,-424.3135978,0.0003952,2]
[355878301,1741671945346,-276.606161,0.00040451,2]
[355878302,1741671945371,-183.9347476,0.0004098,2]
[355878303,1741671945393,-6333.64,0.00041095,120]
[355878304,1741671945415,-1372.88,0.00041095,120]
[355878305,1741671945436,-828.24,0.00041095,120]
[355878306,1741671945460,-500.0,0.00041095,120]
[355878307,1741671945482,-500.0,0.00041095,120]
[355878308,1741671945504,-500.0,0.00041095,120]
[355878309,1741671945526,-548.88,0.00041095,120]
[355878310,1741671945546,-500.0,0.00041095,120]
[355878311,1741671945568,-500.0,0.00041095,120]
[355878312,1741671945589,-1173.01,0.00041095,120]
[355878313,1741671945611,-739.55,0.00041095,120]
[355878314,1741671945632,-500.0,0.00041095,120]
[355878315,1741671945654,-150.0,0.00041275,5]
[355878316,1741671945679,-500.0,0.00041368,2]
[355878317,1741671945705,-572.11429848,0.00041368,31]
[355878318,1741671945731,-500.0,0.00041368,2]
[355878319,1741671945759,-500.0,0.00041368,2]
[355878320,1741671945784,-500.0,0.00041368,2]
[355878321,1741671945810,-500.0,0.00041368,2]
[355878322,1741671945834,-500.0,0.00041368,2]
[355878323,1741671945860,-500.0,0.00041368,2]
[355878324,1741671945886,-500.0,0.00041368,2]
[355878325,1741671945910,-500.0,0.00041368,2]
[355878326,1741671945935,-322.1894418,0.00041368,2]
[355878327,1741671945962,-209.79978615,0.00041368,2]
[355878328,1741671945987,-500.0,0.00041368,2]
[355878329,1741671946013,-500.0,0.00041368,2]
[355878330,1741671946038,-500.0,0.00041368,2]
[355878331,1741671946063,-500.0,0.00041368,2]
[355878332,1741671946088,-500.0,0.00041368,2]
[355878333,1741671946113,-500.0,0.00041368,2]
[355878334,1741671946143,-500.0,0.00041368,2]
[355878335,1741671946169,-500.0,0.00041368,2]
[355878336,1741671946193,-500.0,0.00041368,2]
[355878337,1741671946220,-500.0,0.00041368,2]
[355878338,1741671946242,-6333.64,0.00041369,120]
[355878339,1741671946264,-1372.88,0.00041369,120]
[355878340,1741671946286,-828.24,0.00041369,120]
[355878341,1741671946308,-154.88621598,0.00041369,120]
[355878342,1741671946328,-500.0,0.00041369,120]
[355878343,1741671946348,-500.0,0.00041369,120]
[355878344,1741671946370,-548.88,0.00041369,120]
[355878345,1741671946391,-500.0,0.00041369,120]
[355878346,1741671946412,-500.0,0.00041369,120]
[355878347,1741671946433,-1173.01,0.00041369,120]
[355878348,1741671946456,-739.55,0.00041369,120]
[355878349,1741671946476,-605.14419699,0.00041369,120]
[355878350,1741671946497,-152.82610872,0.00041425,20]
[355878351,1741671946519,-174.28278096,0.0004154,120]
[355878352,1741671946540,-6333.64,0.00041643,120]
[355878353,1741671946561,-1372.88,0.00041643,120]
[355878354,1741671946582,-828.24,0.00041643,120]
[355878355,1741671946602,-500.0,0.00041643,120]
[355878356,1741671946623,-500.0,0.00041643,120]
[355878357,1741671946643,-548.88,0.00041643,120]
[355878358,1741671946664,-500.0,0.00041643,120]
[355878359,1741671946685,-500.0,0.00041643,120]
[355878360,1741671946708,-1173.01,0.00041643,120]
[355878361,1741671946730,-739.55,0.00041643,120]
[355878362,1741671946751,-6333.64,0.00041917,120]
[355878363,1741671946773,-1372.88,0.00041917,120]
[355878364,1741671946794,-828.24,0.00041917,120]
[355878365,1741671946816,-548.45858048,0.00041917,120]
[355878366,1741671946837,-500.0,0.00041917,120]
[355878367,1741671946859,-548.88,0.00041917,120]
[355878368,1741671946880,-500.0,0.00041917,120]
[355878369,1741671947109,-500.0,0.00041917,120]
[355878370,1741671947133,-1173.01,0.00041917,120]
[355878371,1741671947158,-739.55,0.00041917,120]
[355878372,1741671947181,-6333.64,0.00042191,120]
[355878373,1741671947204,-1372.88,0.00042191,120]
[355878374,1741671947227,-828.24,0.00042191,120]
[355878375,1741671947249,-500.0,0.00042191,120]
[355878376,1741671947270,-548.88,0.00042191,120]
[355878377,1741671947291,-573.41616789,0.00042191,120]
[355878378,1741671947313,-500.0,0.00042191,120]
[355878379,1741671947338,-1173.01,0.00042191,120]
[355878380,1741671947360,-739.55,0.00042191,120]
[355878381,1741671947382,-158.795775,0.00042209,2]
[355878382,1741671947404,-726.88,0.00042455,10]
[355878383,1741671947426,-6333.64,0.00042465,120]
[355878384,1741671947449,-1372.88,0.00042465,120]
[355878385,1741671947472,-828.24,0.00042465,120]
[355878386,1741671947494,-500.0,0.00042465,120]
[355878387,1741671947517,-548.88,0.00042465,120]
[355878388,1741671947539,-500.0,0.00042465,120]
[355878389,1741671947561,-1173.01,0.00042465,120]
[355878390,1741671947583,-739.55,0.00042465,120]
[355878391,1741671947605,-753.85,0.00042729,10]
[355878392,1741671947627,-6333.64,0.00042739,120]
[355878393,1741671947649,-1372.88,0.00042739,120]
[355878394,1741671947670,-828.24,0.00042739,120]
[355878395,1741671947692,-500.0,0.00042739,120]
[355878396,1741671947717,-548.88,0.00042739,120]
[355878397,1741671947739,-500.0,0.00042739,120]
[355878398,1741671947762,-1173.01,0.00042739,120]
[355878399,1741671947785,-739.55,0.00042739,120]
[355878400,1741671947806,-6333.64,0.00043013,120]
[355878401,1741671947830,-1372.88,0.00043013,120]
[355878402,1741671947852,-828.24,0.00043013,120]
[355878403,1741671947873,-500.0,0.00043013,120]
[355878404,1741671947897,-548.88,0.00043013,120]
[355878405,1741671947920,-561.62103165,0.00043013,120]
[355878406,1741671947946,-1173.01,0.00043013,120]
[355878407,1741671947978,-739.55,0.00043013,120]
[355878408,1741671948004,-3585.17094378,0.00043287,120]
[355878409,1741671956089,-196.72583423,0.00041095,120]
[355878410,1741672051286,-201.16289294,0.00037984,2]
[355878411,1741672051312,-303.27416577,0.00041095,120]
[355878412,1741672051334,-500.0,0.00041095,120]
[355878413,1741672051355,-500.0,0.00041095,120]
[355878414,1741672051376,-26.03613156,0.00041095,120]
[355878432,1741672147126,-218.362005,0.00036456,2]
[355878433,1741672147154,-56758.19313504,0.00037,30]
[355878434,1741672151096,-96938.64447439,0.00037,30]
[355878435,1741672151118,-482.31354037,0.00040808,5]
[355878436,1741672151141,-509.69498307,0.00040913,2]
[355878437,1741672151171,-258.02104909,0.00041094,2]
[355878438,1741672151200,-500.0,0.00041094,2]
[355878439,1741672151224,-356.64442068,0.00041094,2]
[355878440,1741672151246,-473.96386844,0.00041095,120]
[355878441,1741672151267,-500.0,0.00041095,120]
[355878442,1741672151288,-500.0,0.00041095,120]
[355878443,1741672151308,-500.0,0.00041095,120]
[355878444,1741672151328,-516.33980482,0.00041095,120]
[355878445,1741672151349,-500.0,0.00041095,120]
[355878446,1741672151371,-500.0,0.00041095,120]
[355878447,1741672151393,-500.0,0.00041095,120]
[355878448,1741672151417,-500.0,0.00041095,120]
[355878449,1741672151438,-500.0,0.00041095,120]
[355878450,1741672151458,-517.74320305,0.00041095,120]
[355878451,1741672151704,-500.0,0.00041095,120]
[355878452,1741672151726,-510.31545895,0.00041095,120]
[355878453,1741672151749,-511.71417536,0.00041095,120]
[355878454,1741672151773,-563.77,0.00041095,120]
[355878455,1741672151795,-500.0,0.00041095,120]
[355878456,1741672151816,-674.25,0.00041095,120]
[355878457,1741672151838,-500.0,0.00041095,21]
[355878458,1741672151860,-500.0,0.00041095,120]
[355878459,1741672151882,-500.0,0.00041095,120]
[355878460,1741672151906,-529.29825262,0.00041095,120]
[355878461,1741672151929,-2102.69,0.00041095,120]
[355878462,1741672151951,-518.63486593,0.00041095,120]
[355878463,1741672151972,-500.0,0.00041095,120]
[355878464,1741672151995,-500.0,0.00041095,120]
[355878465,1741672152030,-1561.38,0.00041095,120]
[355878466,1741672152058,-500.0,0.00041095,120]
[355878467,1741672152082,-509.27336176,0.00041095,120]
[355878468,1741672152106,-513.71356873,0.00041095,120]
[355878469,1741672152131,-272.18514682,0.00041095,120]
[355878470,1741672172083,-642.30485318,0.00041095,120]
[355878471,1741672172105,-500.0,0.00041095,120]
[355878472,1741672172127,-500.0,0.00041095,120]
[355878473,1741672172148,-517.38252973,0.00041095,120]
[355878474,1741672172171,-500.0,0.00041095,120]
[355878475,1741672172194,-500.0,0.00041095,120]
[355878476,1741672172216,-507.53950834,0.00041095,120]
[355878477,1741672172237,-500.0,0.00041095,120]
[355878478,1741672172260,-1609.27,0.00041095,120]
[355878479,1741672172281,-500.0,0.00041095,120]
[355878480,1741672172302,-500.0,0.00041095,120]
[355878481,1741672172323,-500.0,0.00041095,120]
[355878482,1741672172342,-500.0,0.00041095,120]
[355878483,1741672172363,-1000.0,0.00041095,120]
[355878484,1741672172384,-500.0,0.00041095,120]
[355878485,1741672172405,-209.86266238,0.00041095,120]
[355878486,1741672172427,-3051.67,0.00041095,120]
[355878487,1741672172448,-951.83,0.00041095,120]
[355878488,1741672172468,-500.0,0.00041095,120]
[355878489,1741672172489,-500.0,0.00041095,120]
[355878490,1741672172509,-500.0,0.00041095,120]
[355878491,1741672172530,-500.0,0.00041095,120]
[355878492,1741672172552,-500.0,0.00041095,120]
[355878493,1741672172572,-531.56290831,0.00041095,120]
[355878494,1741672172593,-500.0,0.00041095,120]
[355878495,1741672172614,-510.0541653,0.00041095,120]
[355878496,1741672172636,-504.9887898,0.00041095,120]
[355878497,1741672172657,-500.0,0.00041095,120]
[355878498,1741672172678,-500.0,0.00041095,120]
[355878499,1741672172698,-500.0,0.00041095,120]
[355878500,1741672172720,-6887.5,0.00041095,120]
[355878501,1741672172741,-510.62238734,0.00041095,120]
[355878502,1741672172762,-500.0,0.00041095,120]
[355878503,1741672172782,-500.0,0.00041095,120]
[355878504,1741672172803,-518.64713421,0.00041095,120]
[355878505,1741672172823,-4009.36,0.00041095,120]
[355878506,1741672172844,-509.32375056,0.00041095,120]
[355878507,1741672172865,-500.0,0.00041095,120]
[355878508,1741672172886,-508.91906291,0.00041095,120]
[355878509,1741672172906,-522.37198111,0.00041095,120]
[355878510,1741672172929,-500.0,0.00041095,120]
[355878511,1741672172949,-500.0,0.00041095,120]
[355878512,1741672172970,-533.54321541,0.00041095,120]
[355878513,1741672172990,-500.0,0.00041095,120]
[355878514,1741672173011,-2974.75,0.00041095,120]
[355878515,1741672173032,-500.0,0.00041095,120]
[355878516,1741672173054,-270.54115133,0.00041095,120]
[355878517,1741672173076,-500.0,0.00041095,120]
[355878518,1741672173100,-545.29228905,0.00041095,120]
[355878519,1741672173122,-500.0,0.00041095,120]
[355878520,1741672173143,-517.41896685,0.00041095,120]
[355878521,1741672173163,-500.0,0.00041095,120]
[355878522,1741672173188,-500.0,0.00041095,120]
[355878523,1741672173213,-2307.21,0.00041095,120]
[355878524,1741672173235,-1499.03,0.00041095,120]
[355878525,1741672173258,-500.0,0.00041095,120]
[355878526,1741672173284,-500.0,0.00041095,120]
[355878527,1741672173308,-501.86729771,0.00041095,120]
[355878528,1741672173331,-500.0,0.00041095,120]
[355878529,1741672173358,-500.0,0.00041095,120]
[355878530,1741672173382,-730.08,0.00041095,120]
[355878531,1741672173404,-500.0,0.00041095,120]
[355878532,1741672173428,-1410.24,0.00041095,120]
[355878533,1741672173450,-500.0,0.00041095,120]
[355878534,1741672173472,-500.0,0.00041095,120]
[355878535,1741672173496,-500.0,0.00041095,120]
[355878536,1741672173517,-516.59900177,0.00041095,120]
[355878537,1741672173539,-804.33,0.00041095,120]
[355878538,1741672173561,-500.0,0.00041095,120]
[355878539,1741672173583,-500.0,0.00041095,120]
[355878540,1741672173605,-500.0,0.00041095,120]
[355878541,1741672173626,-500.0,0.00041095,120]
[355878542,1741672173652,-500.0,0.00041095,30]
[355878543,1741672173678,-500.0,0.00041095,120]
[355878544,1741672173700,-6176.14,0.00041095,120]
[355878545,1741672173722,-500.0,0.00041095,120]
[355878546,1741672173743,-500.0,0.00041095,120]
[355878547,1741672173765,-509.10492384,0.00041095,120]
[355878548,1741672173788,-1082.1,0.00041095,120]
[355878549,1741672173810,-247.75,0.000411,30]
[355878550,1741672173831,-605.73,0.00041359,10]
[355878551,1741672173853,-373.32201907,0.00041368,31]
[355878552,1741672173881,-275.58465895,0.00041368,31]
[355878553,1741672173904,-500.0,0.00041369,120]
[355878554,1741672173927,-383.19972971,0.00041369,120]
[355878555,1741672173950,-500.0,0.00041369,120]
[355878556,1741672173972,-529.33305753,0.00041369,120]
[355878557,1741672173993,-538.74203086,0.00041369,120]
[355878558,1741672174015,-633.13402057,0.00041369,120]
[355878559,1741672174037,-500.0,0.00041369,120]
[355878560,1741672174061,-500.0,0.00041369,120]
[355878561,1741672174329,-500.0,0.00041369,120]
[355878562,1741672174352,-500.0,0.00041369,120]
[355878563,1741672174374,-500.0,0.00041369,120]
[355878564,1741672174396,-500.0,0.00041369,120]
[355878565,1741672174418,-500.0,0.00041369,120]
[355878566,1741672174440,-563.77,0.00041369,120]
[355878567,1741672174461,-500.0,0.00041369,120]
[355878568,1741672174482,-674.25,0.00041369,120]
[355878569,1741672174503,-500.0,0.00041369,21]
[355878570,1741672174524,-500.0,0.00041369,120]
[355878571,1741672174545,-549.76171085,0.00041369,120]
[355878572,1741672174566,-2102.69,0.00041369,120]
[355878573,1741672174588,-500.0,0.00041369,120]
[355878574,1741672174609,-500.0,0.00041369,120]
[355878575,1741672174632,-1561.38,0.00041369,120]
[355878576,1741672174652,-500.0,0.00041369,120]
[355878577,1741672174675,-914.49,0.00041369,120]
[355878578,1741672174695,-500.0,0.00041369,120]
[355878579,1741672174715,-500.0,0.00041369,120]
[355878580,1741672174736,-500.0,0.00041369,120]
[355878581,1741672174758,-500.0,0.00041369,120]
[355878582,1741672174778,-500.0,0.00041369,120]
[355878583,1741672174800,-1609.27,0.00041369,120]
[355878584,1741672174820,-500.0,0.00041369,120]
[355878585,1741672174841,-500.0,0.00041369,120]
[355878586,1741672174861,-500.0,0.00041369,120]
[355878587,1741672174882,-513.71147935,0.00041369,120]
[355878588,1741672174903,-1000.0,0.00041369,120]
[355878589,1741672174924,-500.0,0.00041369,120]
[355878590,1741672174946,-3051.67,0.00041369,120]
[355878591,1741672174968,-951.83,0.00041369,120]
[355878592,1741672174989,-500.0,0.00041369,120]
[355878593,1741672175011,-500.0,0.00041369,120]
[355878594,1741672175031,-516.88467526,0.00041369,120]
[355878595,1741672175052,-500.0,0.00041369,120]
[355878596,1741672175074,-500.0,0.00041369,120]
[355878597,1741672175095,-500.0,0.00041369,120]
[355878598,1741672175116,-500.0,0.00041369,120]
[355878599,1741672175137,-500.0,0.00041369,120]
[355878600,1741672175158,-500.0,0.00041369,120]
[355878601,1741672175184,-6887.5,0.00041369,120]
[355878602,1741672175210,-500.0,0.00041369,120]
[355878603,1741672175232,-500.0,0.00041369,120]
[355878604,1741672175256,-4009.36,0.00041369,120]
[355878605,1741672175278,-500.0,0.00041369,120]
[355878606,1741672175299,-491.54597059,0.00041369,120]
[355878607,1741672175320,-524.72619281,0.00041369,120]
[355878608,1741672175342,-500.0,0.00041369,120]
[355878609,1741672175365,-2974.75,0.00041369,120]
[355878610,1741672175388,-500.0,0.00041369,120]
[355878611,1741672175410,-500.0,0.00041369,120]
[355878612,1741672175433,-500.0,0.00041369,120]
[355878613,1741672175455,-500.0,0.00041369,120]
[355878614,1741672175477,-2307.21,0.00041369,120]
[355878615,1741672175498,-1499.03,0.00041369,120]
[355878616,1741672175518,-500.0,0.00041369,120]
[355878617,1741672175540,-500.0,0.00041369,120]
[355878618,1741672175561,-500.0,0.00041369,120]
[355878619,1741672175584,-500.0,0.00041369,120]
[355878620,1741672175607,-500.0,0.00041369,120]
[355878621,1741672175629,-730.08,0.00041369,120]
[355878622,1741672175650,-500.0,0.00041369,120]
[355878623,1741672175672,-1410.24,0.00041369,120]
[355878624,1741672175694,-500.0,0.00041369,120]
[355878625,1741672175715,-500.0,0.00041369,120]
[355878626,1741672175736,-500.0,0.00041369,120]
[355878627,1741672175759,-804.33,0.00041369,120]
[355878628,1741672175780,-500.0,0.00041369,120]
[355878629,1741672175801,-500.0,0.00041369,120]
[355878630,1741672175821,-500.0,0.00041369,120]
[355878631,1741672175843,-500.0,0.00041369,120]
[355878632,1741672175864,-500.0,0.00041369,30]
[355878633,1741672175885,-500.0,0.00041369,120]
[355878634,1741672175906,-6176.14,0.00041369,120]
[355878635,1741672175928,-500.0,0.00041369,120]
[355878636,1741672175950,-500.0,0.00041369,120]
[355878637,1741672175971,-542.31,0.000414,30]
[355878638,1741672175993,-13665.4435497,0.00041633,3]
[355878639,1741672176015,-500.0,0.00041643,120]
[355878640,1741672176037,-500.0,0.00041643,120]
[355878641,1741672176058,-391.79411144,0.00041643,120]
[355878642,1741672176081,-500.0,0.00041643,120]
[355878643,1741672176102,-500.0,0.00041643,120]
[355878644,1741672176124,-500.0,0.00041643,120]
[355878645,1741672176145,-407.71525998,0.00041643,120]
[355878646,1741672176168,-500.0,0.00041643,120]
[355878647,1741672176195,-500.0,0.00041643,120]
[355878648,1741672176223,-229.46084663,0.00041643,120]
[355878649,1741672203180,5373.17670896,0.000252,2]
[355878650,1741672203907,-169.0,0.000252,2]
[355878657,1741672232456,-6170.67374203,0.000252,2]
[355878659,1741672232467,-200.0,0.00041095,7]
[355878661,1741672232479,-500.0,0.00041095,120]
[355878663,1741672232488,-334.49284002,0.00041095,120]
[355878665,1741672232498,-505.77,0.00041095,120]
[355878667,1741672232508,-500.0,0.00041095,120]
[355878669,1741672232518,-500.0,0.00041095,120]
[355878671,1741672232527,-686.32,0.00041095,120]
[355878673,1741672232537,-500.0,0.00041095,120]
[355878675,1741672232547,-500.0,0.00041095,120]
[355878677,1741672232556,-500.0,0.00041095,120]
[355878679,1741672232565,-2629.63,0.00041095,120]
[355878681,1741672232575,-500.0,0.00041095,120]
[355878683,1741672232585,-500.0,0.00041095,120]
[355878685,1741672232595,-500.0,0.00041095,120]
[355878687,1741672232604,-500.0,0.00041095,120]
[355878689,1741672232613,-522.12308898,0.00041095,120]
[355878691,1741672232623,-14115.09,0.00041095,2]
[355878693,1741672232632,-500.0,0.00041095,120]
[355878695,1741672232642,-500.0,0.00041095,120]
[355878697,1741672232651,-1492.11,0.00041095,120]
[355878699,1741672232660,-500.0,0.00041095,120]
[355878701,1741672232670,-500.0,0.00041095,2]
[355878703,1741672232680,-1082.1,0.00041369,120]
[355878705,1741672232690,-500.0,0.00041369,120]
[355878707,1741672232699,-505.77,0.00041369,120]